bitfinex-derivatives/quotes_SOLF0:USTF0_20250904
["timestamp","ask_amount","ask_price","bid_price","bid_amount"]
[1757027328844,7.69,204.79,204.7,4.43380159]
[1757027329040,7.69,204.79,204.69,131.04]
[1757027329243,7.69,204.79,204.7,4.4341109]
[1757027329440,7.69,204.79,204.69,131.04]
[1757027329641,7.69,204.79,204.7,4.43496383]
[1757027329939,7.69,204.79,204.69,131.04]
[1757027330141,7.69,204.79,204.7,4.43496383]
[1757027330347,7.69,204.79,204.71,4.43605388]
[1757027330644,7.69,204.79,204.69,131.04]
[1757027330943,7.69,204.79,204.7,4.43605388]
[1757027331244,7.61,204.84,204.72,8.03]
[1757027331545,7.61,204.84,204.74,8.03]
[1757027331546,2.36292517,204.83,204.74,8.03]
[1757027332343,7.61,204.84,204.75,4.43543952]
[1757027332546,7.61,204.84,204.74,47.78]
[1757027332746,7.61,204.84,204.75,12.46504552]
[1757027333045,7.61,204.84,204.75,8.03]
[1757027333837,7.61,204.84,204.77,8.03]
[1757027334147,5.41003249,204.99,204.74,30.88]
[1757027334148,7.61,204.9,204.79,8.03]
[1757027334847,2.36292517,204.89,204.79,8.03]
[1757027335443,7.61,204.88,204.8,4.43475029]
[1757027335641,7.61,204.88,204.79,8.03]
[1757027337351,7.61,204.88,204.8,4.43837929]
[1757027337647,9.97292517,204.88,204.79,8.03]
[1757027337848,9.97292517,204.88,204.81,8.03]
[1757027339941,7.61,204.96,204.82,4.44054803]
[1757027340145,2.36292517,204.87,204.81,8.03]
[1757027340346,9.97292517,204.87,204.76,2.36292517]
[1757027340653,9.97292517,204.87,204.77,12.48623905]
[1757027340840,9.97292517,204.87,204.78,4.45623905]
[1757027341045,9.97292517,204.87,204.79,4.45623905]
[1757027341240,9.97292517,204.87,204.8,4.45623905]
[1757027341440,7.61,204.83,204.77,8.03]
[1757027341647,7.61,204.83,204.78,4.46000852]
[1757027341859,2.36292517,204.87,204.79,4.45954044]
[1757027342149,2.36292517,204.87,204.8,4.45954044]
[1757027342350,9.97292517,204.87,204.77,8.03]
[1757027342553,2.36292517,204.84,204.78,4.45862184]
[1757027342851,7.61,204.8,204.73,8.03]
[1757027343151,2.36292517,204.81,204.74,4.46239824]
[1757027343348,2.36292517,204.81,204.75,4.46239824]
[1757027343552,2.36292517,204.81,204.76,12.49239824]
[1757027343740,9.97292517,204.81,204.77,4.46239824]
[1757027343945,9.97292517,204.81,204.78,4.46239824]
[1757027344142,9.97292517,204.81,204.79,4.46239824]
[1757027344341,9.97292517,204.81,204.8,4.47056963]
[1757027348152,7.61,204.81,204.8,4.47056963]
[1757027349551,7.61,204.81,204.73,8.03]
[1757027349756,7.61,204.78,204.74,4.48288978]
[1757027350056,7.61,204.78,204.75,12.51288978]
[1757027350255,7.61,204.78,204.76,4.48288978]
[1757027350450,7.61,204.78,204.77,4.48288978]
[1757027352155,7.61,204.8,204.77,4.40179707]
[1757027352354,2.36292517,204.81,204.78,4.40179707]
[1757027352555,2.36292517,204.81,204.79,4.40179707]
[1757027352859,7.61,204.83,204.8,4.40179707]
[1757027353059,7.61,204.85,204.81,4.40280022]
[1757027353248,9.97292517,204.83,204.74,8.03]
[1757027353453,7.61,204.79,204.75,4.40265766]
[1757027353656,7.61,204.79,204.76,4.40265766]
[1757027353857,7.61,204.79,204.77,4.40265766]
[1757027354056,7.61,204.79,204.78,4.40265766]
[1757027354857,8.09,204.79,204.7,8.03]
[1757027355061,9.97292517,204.75,204.71,4.40637782]
[1757027355360,9.97292517,204.75,204.72,4.40637782]
[1757027355657,9.97292517,204.75,204.73,4.40637782]
[1757027355850,9.97292517,204.75,204.74,4.40637782]
[1757027357459,9.97292517,204.75,204.67,8.03]
[1757027357660,9.97292517,204.75,204.68,4.41031549]
[1757027357857,2.36292517,204.72,204.69,4.41031549]
[1757027358062,7.87,204.71,204.64,39.78]
[1757027358258,7.87,204.71,204.64,7.92]
[1757027358565,7.87,204.71,204.65,4.41366239]
[1757027358758,2.36292517,204.72,204.66,4.41366239]
[1757027358960,2.36292517,204.72,204.67,4.41366239]
[1757027359160,2.36292517,204.72,204.68,4.41366239]
[1757027359361,10.23292517,204.72,204.64,7.92]
[1757027359563,10.23292517,204.72,204.65,4.40926829]
[1757027359861,10.23292517,204.72,204.66,4.40926829]
[1757027360063,2.36292517,204.72,204.67,4.40974783]
[1757027360258,7.87,204.71,204.68,4.40974783]
[1757027360564,7.87,204.71,204.64,7.92]
[1757027360765,7.87,204.71,204.65,4.40838738]
[1757027361065,7.87,204.74,204.66,12.32838738]
[1757027361261,7.87,204.74,204.67,4.40838738]
[1757027361564,10.23292517,204.73,204.68,12.32838738]
[1757027361765,10.23292517,204.73,204.69,4.40838738]
[1757027361967,10.23292517,204.73,204.7,4.40838738]
[1757027362166,7.87,204.72,204.68,7.92]
[1757027362363,7.87,204.72,204.69,4.40705692]
[1757027362558,7.87,204.72,204.7,4.40705692]
[1757027362766,7.87,204.72,204.68,7.92]
[1757027363065,7.87,204.72,204.69,4.40657137]
[1757027363272,7.87,204.72,204.68,7.92]
[1757027363474,7.87,204.72,204.69,4.40603945]
[1757027363678,7.87,204.72,204.68,7.92]
[1757027363976,7.87,204.72,204.69,12.32603933]
[1757027364271,2.36292517,204.73,204.64,7.92]
[1757027364477,7.87,204.76,204.63,2.36292517]
[1757027364478,10.23292517,204.76,204.66,7.92]
[1757027364677,10.23292517,204.76,204.67,4.40437339]
[1757027364975,10.23292517,204.76,204.68,12.32437339]
[1757027365177,10.23292517,204.76,204.69,4.40437339]
[1757027365378,10.23292517,204.76,204.7,4.40437339]
[1757027365577,7.87,204.75,204.71,4.40437339]
[1757027365878,7.87,204.75,204.68,7.92]
[1757027366072,7.87,204.75,204.69,4.40388372]
[1757027366279,10.23292517,204.76,204.7,4.40388372]
[1757027366485,7.87,204.75,204.71,4.40368108]
[1757027366676,7.87,204.75,204.68,7.92]
[1757027366877,7.87,204.75,204.69,4.40368145]
[1757027367072,7.87,204.75,204.7,12.32368145]
[1757027367377,7.87,204.75,204.71,4.40368145]
[1757027367578,2.36292517,204.73,204.64,7.92]
[1757027367780,10.23292517,204.73,204.66,7.92]
[1757027367974,10.23292517,204.76,204.68,7.92]
[1757027368177,10.23292517,204.76,204.69,4.40379457]
[1757027368380,10.23292517,204.76,204.7,4.40379457]
[1757027368575,10.23292517,204.76,204.71,12.32379457]
[1757027368576,7.87,204.75,204.71,12.32379457]
[1757027368777,7.87,204.75,204.71,7.92]
[1757027368970,2.36292517,204.76,204.71,7.92]
[1757027369370,7.87,204.75,204.64,7.92]
[1757027369572,7.87,204.75,204.66,7.92]
[1757027369777,7.87,204.75,204.67,4.40277509]
[1757027369980,7.87,204.75,204.68,4.40277509]
[1757027370278,7.87,204.72,204.69,4.40277509]
[1757027370476,7.87,204.72,204.66,7.92]
[1757027370780,7.87,204.72,204.68,7.92]
[1757027371075,10.23292517,204.7,204.61,322.66]
[1757027371281,10.23292517,204.7,204.62,4.39867327]
[1757027371471,10.23292517,204.7,204.63,4.39867327]
[1757027371778,10.23292517,204.7,204.64,4.39867327]
[1757027371974,2.36292517,204.7,204.65,4.39867327]
[1757027372174,7.87,204.69,204.61,7.92]
[1757027372369,7.87,204.69,204.62,4.39995543]
[1757027372571,7.87,204.69,204.63,4.39995543]
[1757027372772,2.36292517,204.7,204.64,4.39995543]
[1757027372968,7.87,204.69,204.61,7.92]
[1757027373182,2.36292517,204.67,204.62,4.39945986]
[1757027373377,2.36292517,204.67,204.63,4.39945986]
[1757027373581,10.23292517,204.67,204.61,7.92]
[1757027373783,7.87,204.66,204.62,4.39946247]
[1757027373982,7.87,204.66,204.63,4.39946247]
[1757027374282,7.87,204.66,204.61,7.92]
[1757027374484,7.87,204.66,204.62,4.40168641]
[1757027374684,7.87,204.66,204.63,4.40168641]
[1757027374984,7.87,204.66,204.58,7.92]
[1757027375185,7.87,204.66,204.59,4.40169329]
[1757027375478,1.51368278,204.64,204.6,4.40169329]
[1757027375672,9.38368278,204.64,204.61,4.40169329]
[1757027375876,1.51368278,204.62,204.58,7.92]
[1757027376077,9.38368278,204.62,204.59,4.40186103]
[1757027376285,9.38368278,204.62,204.6,4.40186103]
[1757027376485,9.38368278,204.62,204.58,7.92]
[1757027376684,9.38368278,204.62,204.59,4.40013533]
[1757027376875,9.38368278,204.62,204.6,4.40013533]
[1757027377082,9.38368278,204.62,204.58,7.92]
[1757027377282,1.51368278,204.6,204.59,4.40013393]
[1757027377682,9.38368278,204.6,204.53,7.92]
[1757027377884,1.51368278,204.57,204.55,7.92]
[1757027378083,1.51368278,204.57,204.56,12.32005518]
[1757027379188,7.87,204.64,204.56,12.32005518]
[1757027379390,1.51368278,204.58,204.51,1.51368278]
[1757027379590,1.51368278,204.58,204.53,7.92]
[1757027379792,1.51368278,204.58,204.54,4.39666139]
[1757027379988,1.51368278,204.58,204.55,4.39666139]
[1757027380186,1.51368278,204.58,204.57,7.92]
[1757027381889,7.87,204.64,204.57,7.92]
[1757027382084,1.51368278,204.63,204.58,4.39381598]
[1757027382395,1.51368278,204.63,204.6,7.92]
[1757027382590,1.51368278,204.63,204.57,7.92]
[1757027382789,1.51368278,204.63,204.58,4.39340871]
[1757027382993,1.51368278,204.63,204.6,7.92]
[1757027383291,1.51368278,204.61,204.6,7.92]
[1757027383491,1.51368278,204.61,204.55,7.92]
[1757027383692,1.51368278,204.61,204.57,7.92]
[1757027384297,1.51368278,204.61,204.58,4.39482103]
[1757027384492,1.51368278,204.59,204.57,7.92]
[1757027384687,1.51368278,204.59,204.58,4.39482243]
[1757027385096,1.51368278,204.59,204.57,7.92]
[1757027385398,1.51368278,204.59,204.52,7.92]
[1757027385596,1.51368278,204.59,204.53,4.39474519]
[1757027385792,1.51368278,204.59,204.55,7.92]
[1757027385986,1.51368278,204.59,204.56,4.39474519]
[1757027386292,1.51368278,204.59,204.58,7.92]
[1757027387295,1.51368278,204.59,204.52,4.3999]
[1757027387296,7.87,204.58,204.5,7.92]
[1757027387498,1.51368278,204.56,204.51,4.39951828]
[1757027387688,1.51368278,204.57,204.52,12.31951828]
[1757027387993,1.51368278,204.57,204.54,7.76]
[1757027388189,1.51368278,204.57,204.55,4.39951828]
[1757027388496,1.51368278,204.57,204.56,4.39951828]
[1757027388885,7.58,204.69,204.56,4.39951828]
[1757027389089,1.51368278,204.57,204.51,7.76]
[1757027389291,14.7,204.71,204.53,7.76]
[1757027389489,1.51368278,204.6,204.54,5.91340061]
[1757027389693,1.51368278,204.63,204.56,9.27368278]
[1757027389890,1.51368278,204.63,204.58,7.76]
[1757027390101,1.51368278,204.63,204.6,7.76]
[1757027390292,1.51368278,204.63,204.57,7.76]
[1757027390496,1.51368278,204.63,204.58,4.39808768]
[1757027390693,1.51368278,204.63,204.6,7.76]
[1757027391598,9.09368278,204.61,204.56,7.76]
[1757027391800,9.09368278,204.61,204.57,12.16081414]
[1757027392000,1.51368278,204.62,204.58,12.16081414]
[1757027392201,1.51368278,204.62,204.58,7.76]
[1757027392394,1.51368278,204.62,204.54,1.51368278]
[1757027392596,1.51368278,204.62,204.55,12.16139347]
[1757027392795,1.51368278,204.62,204.56,4.40139347]
[1757027392995,1.51368278,204.62,204.58,7.76]
[1757027393203,1.51368278,204.62,204.6,7.76]
[1757027393397,1.51368278,204.62,204.56,7.76]
[1757027393605,1.51368278,204.6,204.57,4.40222243]
[1757027393901,1.51368278,204.6,204.58,4.40222243]
[1757027394098,1.51368278,204.62,204.59,4.40238468]
[1757027394298,7.58,204.73,204.62,7.76]
[1757027394499,7.58,204.73,204.61,1.51368278]
[1757027394500,1.51368278,204.71,204.63,5.91214747]
[1757027394808,1.51368278,204.71,204.64,12.15846469]
[1757027394999,1.51368278,204.71,204.65,4.39846469]
[1757027395197,9.09368278,204.71,204.66,12.15846469]
[1757027395398,7.58,204.7,204.67,4.39846469]
[1757027395701,1.51368278,204.69,204.63,1.51368278]
[1757027396002,9.09368278,204.69,204.64,12.16067854]
[1757027396204,9.09368278,204.69,204.65,4.40067854]
[1757027396502,1.51368278,204.69,204.66,4.40159707]
[1757027396701,1.51368278,204.69,204.67,4.40159707]
[1757027396903,7.58,204.68,204.6,7.76]
[1757027397102,1.51368278,204.65,204.61,12.16344845]
[1757027397406,1.51368278,204.65,204.62,4.40344845]
[1757027397601,1.51368278,204.67,204.63,4.40344845]
[1757027397806,1.51368278,204.67,204.64,4.40344845]
[1757027398107,1.51368278,204.67,204.65,4.40344845]
[1757027398306,1.51368278,204.67,204.61,7.76]
[1757027398605,1.51368278,204.67,204.63,7.76]
[1757027398800,7.58,204.77,204.65,7.76]
[1757027399007,1.51368278,204.73,204.66,5.92020616]
[1757027399308,1.51368278,204.73,204.67,4.40652338]
[1757027399506,1.51368278,204.73,204.69,7.76]
[1757027399700,7.58,204.77,204.7,4.40652338]
[1757027399903,1.51368278,204.74,204.67,7.76]
[1757027400103,7.58,204.77,204.68,4.40581595]
[1757027400307,1.51368278,204.74,204.7,7.76]
[1757027400505,1.51368278,204.74,204.71,4.40581595]
[1757027400713,1.51368278,204.74,204.72,4.38962984]
[1757027400912,1.51368278,204.74,204.71,7.76]
[1757027401202,1.51368278,204.74,204.72,4.38952474]
[1757027401407,1.51368278,204.74,204.73,4.3893185]
[1757027401908,1.51368278,204.76,204.74,7.76]
[1757027402302,1.51368278,204.76,204.68,1.51368278]
[1757027402609,1.51368278,204.74,204.7,7.76]
[1757027402904,1.51368278,204.74,204.71,4.38946993]
[1757027403106,1.51368278,204.74,204.72,4.38946993]
[1757027403307,1.51368278,204.74,204.7,7.76]
[1757027403606,1.51368278,204.74,204.71,4.38991374]
[1757027403906,1.51368278,204.74,204.72,4.38991374]
[1757027404108,1.51368278,204.74,204.7,7.76]
[1757027404306,1.51368278,204.74,204.71,4.39001382]
[1757027404510,1.51368278,204.74,204.72,4.39001382]
[1757027404705,1.51368278,204.74,204.7,7.76]
[1757027404905,1.51368278,204.74,204.72,7.76]
[1757027409408,1.51368278,204.75,204.69,7.76]
[1757027409611,1.51368278,204.78,204.71,9.27368278]
[1757027409810,1.51368278,204.76,204.72,4.38655934]
[1757027410110,1.51368278,204.74,204.73,4.38581293]
[1757027410409,1.51368278,204.74,204.68,7.76]
[1757027410599,1.51368278,204.69,204.63,7.76]
[1757027410804,1.51368278,204.67,204.61,7.76]
[1757027411001,7.58,204.72,204.62,1.51368278]
[1757027411197,1.51368278,204.69,204.64,1.51368278]
[1757027411397,1.51368278,204.71,204.65,7.76]
[1757027414307,7.58,204.81,204.67,7.76]
[1757027414507,1.51368278,204.74,204.67,7.76]
[1757027414901,7.58,204.81,204.69,7.76]
[1757027415106,1.51368278,204.71,204.65,1.51368278]
[1757027415307,1.51368278,204.71,204.66,7.76]
[1757027415706,1.51368278,204.71,204.65,1.51368278]
[1757027416113,1.51368278,204.71,204.66,7.76]
[1757027416412,1.51368278,204.71,204.65,1.51368278]
[1757027416413,1.51368278,204.71,204.65,7.76]
[1757027416712,1.51368278,204.71,204.65,9.27368278]
[1757027417413,1.51368278,204.71,204.65,7.76]
[1757027418107,1.51368278,204.69,204.65,7.76]
[1757027418308,9.68368278,204.69,204.61,133.09368278]
[1757027418711,1.51368278,204.69,204.61,133.09368278]
[1757027420013,1.51368278,204.69,204.61,9.65368278]
[1757027420216,1.51368278,204.67,204.61,9.65368278]
[1757027420910,1.51368278,204.65,204.61,8.14]
[1757027421212,1.51368278,204.63,204.57,8.14]
[1757027421411,1.51368278,204.61,204.53,8.14]
[1757027421609,8.17,204.6,204.53,8.14]
[1757027421810,1.51368278,204.54,204.47,36.27878224]
[1757027422007,1.51368278,204.54,204.48,8.14]
[1757027422612,1.51368278,204.52,204.47,123.44]
[1757027422811,1.51368278,204.52,204.48,8.14]
[1757027423116,1.51368278,204.52,204.47,123.44]
[1757027423519,1.51368278,204.52,204.48,8.14]
[1757027423714,1.51368278,204.5,204.44,9.65368278]
[1757027423910,29.59003249,204.67,204.44,9.65368278]
[1757027423911,1.51368278,204.48,204.44,8.14]
[1757027424316,1.51368278,204.5,204.44,8.14]
[1757027426014,1.51368278,204.48,204.44,8.14]
[1757027426216,1.51368278,204.48,204.43,123.44]
[1757027426608,1.51368278,204.48,204.44,8.14]
[1757027427526,9.68368278,204.48,204.44,8.14]
[1757027427729,1.51368278,204.48,204.44,8.14]
[1757027428425,1.51368278,204.46,204.39,322.82]
[1757027428721,1.51368278,204.46,204.39,446.3]
[1757027430026,1.51368278,204.46,204.39,447.81368278]
[1757027431223,1.51368278,204.46,204.39,446.3]
[1757027431428,1.51368278,204.46,204.39,447.81368278]
[1757027431728,1.51368278,204.46,204.39,446.3]
[1757027434832,1.51368278,204.44,204.39,438.16]
[1757027435030,1.51368278,204.42,204.38,123.52]
[1757027435226,1.51368278,204.42,204.38,131.66]
[1757027435624,1.51368278,204.4,204.29,4.4049]
[1757027435820,8.17,204.41,204.3,8.14]
[1757027436020,8.17,204.41,204.33,8.14]
[1757027436227,1.51368278,204.4,204.33,8.14]
[1757027436434,1.51368278,204.38,204.32,9.65368278]
[1757027437133,0.03485425,204.37,204.34,8.14]
[1757027437827,8.17,204.36,204.33,0.03550298]
[1757027438027,2.37105475,204.35,204.33,0.03550298]
[1757027438222,10.54105475,204.35,204.33,0.03550298]
[1757027438431,8.17,204.34,204.33,0.03550298]
[1757027439331,8.17,204.34,204.27,45.24]
[1757027439532,2.37105475,204.31,204.27,45.24]
[1757027439733,10.54105475,204.34,204.28,8.14]
[1757027440732,0.03597521,204.33,204.27,45.24]
[1757027440929,0.03597521,204.33,204.28,8.14]
[1757027441129,10.54105475,204.38,204.28,8.14]
[1757027441337,0.03591817,204.33,204.28,8.14]
[1757027441733,0.03591817,204.33,204.27,45.24]
[1757027442034,0.03591817,204.33,204.28,8.14]
[1757027442631,0.03591817,204.33,204.27,45.24]
[1757027443440,0.03591817,204.33,204.27,53.38]
[1757027448332,10.02105475,204.32,204.27,53.38]
[1757027449032,7.65,204.31,204.27,45.24]
[1757027449829,7.65,204.31,204.23,7.64]
[1757027450038,2.37105475,204.29,204.23,7.64]
[1757027450737,0.0329998,204.28,204.22,7.64]
[1757027455341,0.0329998,204.28,204.22,12.0464]
[1757027455736,0.0329998,204.28,204.22,7.64]
[1757027457541,2.37105475,204.23,204.19,7.64]
[1757027457742,7.6829998,204.28,204.19,7.64]
[1757027458039,2.37105475,204.27,204.19,7.64]
[1757027458245,0.03624005,204.26,204.19,7.64]
[1757027459142,2.37105475,204.24,204.18,438.58]
[1757027459444,2.37105475,204.24,204.19,7.64]
[1757027459850,2.37105475,204.24,204.18,446.22]
[1757027462247,2.37105475,204.24,204.18,131.24]
[1757027463046,2.37105475,204.21,204.18,131.24]
[1757027463546,7.65,204.27,204.18,131.24]
[1757027463748,0.03161282,204.22,204.19,7.64]
[1757027463939,0.03161282,204.22,204.18,123.6]
[1757027464249,0.03161282,204.22,204.19,7.64]
[1757027464453,0.03161282,204.22,204.18,123.6]
[1757027464645,0.03161282,204.22,204.19,7.64]
[1757027464946,0.03161282,204.22,204.18,128.0072]
[1757027465152,0.03161282,204.22,204.19,7.64]
[1757027465450,10.02105475,204.31,204.19,7.64]
[1757027465848,10.02105475,204.31,204.21,4.4066]
[1757027466150,10.02105475,204.31,204.22,7.64]
[1757027466341,10.02105475,204.31,204.23,123.6]
[1757027466548,7.65,204.27,204.21,123.6]
[1757027466748,7.65,204.27,204.19,131.24]
[1757027466947,2.37105475,204.26,204.2,7.64]
[1757027467442,2.37105475,204.29,204.2,7.64]
[1757027468852,2.37105475,204.32,204.21,7.64]
[1757027469149,2.37105475,204.32,204.22,7.64]
[1757027470243,10.02105475,204.29,204.22,7.64]
[1757027470447,2.37105475,204.26,204.16,7.64]
[1757027470638,2.37105475,204.26,204.17,8.64]
[1757027472246,2.37105475,204.26,204.17,55.74]
[1757027472448,2.37105475,204.26,204.16,108.1]
[1757027473847,2.37105475,204.24,204.16,108.1]
[1757027474246,2.37105475,204.24,204.17,7.64]
[1757027476451,2.37105475,204.21,204.11,7.64]
[1757027476647,2.37105475,204.21,204.12,59.36]
[1757027476848,2.37105475,204.21,204.07,9.30106375]
[1757027476849,2.37105475,204.21,204.13,7.64]
[1757027477054,2.37105475,204.2,204.13,7.64]
[1757027479862,7.87,204.29,204.13,7.64]
[1757027480160,2.37105475,204.23,204.13,7.64]
[1757027481560,10.24105475,204.23,204.13,7.64]
[1757027481961,2.37105475,204.2,204.13,7.64]
[1757027488165,2.37105475,204.17,204.08,131.32]
[1757027488664,2.37105475,204.2,204.09,7.74]
[1757027488863,2.37105475,204.21,204.09,7.74]
[1757027489164,2.37105475,204.21,204.1,7.74]
[1757027489370,10.24105475,204.21,204.1,7.74]
[1757027490564,7.87,204.27,204.1,7.74]
[1757027490768,2.37105475,204.22,204.1,7.74]
[1757027490962,7.87,204.24,204.1,7.74]
[1757027491164,2.37105475,204.21,204.1,7.74]
[1757027492466,2.37105475,204.21,204.11,7.74]
[1757027492665,2.37105475,204.18,204.11,7.74]
[1757027495069,7.87,204.17,204.11,7.74]
[1757027495268,7.87,204.17,204.08,123.56]
[1757027495269,2.37105475,204.15,204.08,123.56]
[1757027495459,2.37105475,204.15,204.09,7.74]
[1757027495665,7.87,204.17,204.09,7.74]
[1757027495962,2.37105475,204.18,204.09,7.74]
[1757027496164,7.87,204.21,204.09,7.74]
[1757027496367,2.37105475,204.18,204.09,7.74]
[1757027496867,2.37105475,204.15,204.09,7.74]
[1757027497065,10.24105475,204.15,204.09,7.74]
[1757027497467,1.52131604,204.12,204.09,7.74]
[1757027497673,1.52131604,204.1,204.06,438.88]
[1757027498371,1.52131604,204.1,204.07,7.74]
[1757027498571,1.52131604,204.1,204.06,315.32]
[1757027498873,1.52131604,204.08,204.06,323.06]
[1757027499076,1.52131604,204.08,204.07,7.74]
[1757027500670,1.52131604,204.08,204.05,7.74]
[1757027501074,1.52131604,204.08,204.04,123.54]
[1757027501669,1.52131604,204.08,204.05,7.74]
[1757027501865,1.52131604,204.08,204.04,123.54]
[1757027502065,1.52131604,204.08,204.03,123.54]
[1757027502577,1.52131604,204.08,204.01,1.52131604]
[1757027502769,1.52131604,204.08,204.04,7.74]
[1757027502974,1.52131604,204.08,204.01,1.52131604]
[1757027503171,1.52131604,204.06,204.02,123.54]
[1757027503572,7.87,204.1,204.03,7.74]
[1757027503768,1.52131604,204.08,204.01,7.74]
[1757027503973,1.52131604,204.08,204.01,9.26131604]
[1757027505375,0.0327452,204.09,204.01,9.26131604]
[1757027505574,0.0327452,204.09,204.0,127.9511]
[1757027505575,1.55406124,204.09,204.04,7.74]
[1757027505770,1.55406124,204.09,204.01,7.74]
[1757027505975,1.55406124,204.09,204.04,7.74]
[1757027506174,1.55406124,204.09,204.03,1.52131604]
[1757027506369,1.55406124,204.09,204.04,7.74]
[1757027506570,1.55406124,204.09,204.03,1.52131604]
[1757027507275,1.55406124,204.09,204.04,7.74]
[1757027507674,1.55406124,204.09,204.04,7.76]
[1757027507979,0.0327452,204.09,204.06,7.76]
[1757027508176,0.0327452,204.09,204.08,7.76]
[1757027509774,1.52131604,204.16,204.08,7.76]
[1757027509984,1.52131604,204.17,204.1,7.76]
[1757027510281,1.52131604,204.15,204.1,7.76]
[1757027510579,1.52131604,204.15,204.09,1.52131604]
[1757027510580,1.52131604,204.15,204.09,7.76]
[1757027510877,1.52131604,204.13,204.09,7.76]
[1757027511177,1.52131604,204.11,204.1,0.03093162]
[1757027511569,1.52131604,204.11,204.09,7.76]
[1757027512277,9.56131604,204.11,204.08,0.03754148]
[1757027512772,9.56131604,204.11,204.08,7.79754148]
[1757027512977,1.52131604,204.11,204.08,7.79754148]
[1757027513683,8.04,204.24,204.09,7.76]
[1757027513880,1.52131604,204.15,204.09,7.76]
[1757027514276,1.52131604,204.15,204.1,0.0351537]
[1757027514679,1.52131604,204.15,204.11,7.76]
[1757027516679,9.56131604,204.15,204.11,7.76]
[1757027517975,1.52131604,204.15,204.1,0.0351537]
[1757027518180,1.52131604,204.13,204.1,7.7951537]
[1757027518380,1.52131604,204.13,204.11,7.76]
[1757027518675,1.52131604,204.13,204.07,9.28131604]
[1757027518882,1.52131604,204.13,204.1,0.03479058]
[1757027520085,9.56131604,204.15,204.11,7.76]
[1757027520282,1.52131604,204.15,204.1,0.03479058]
[1757027520580,8.04,204.18,204.1,7.76]
[1757027520788,1.52131604,204.17,204.1,7.79181038]
[1757027520987,1.52131604,204.15,204.1,7.79181038]
[1757027521188,9.56131604,204.15,204.1,7.79181038]
[1757027521388,8.04,204.14,204.1,7.76]
[1757027521584,5.41003249,204.26,204.1,0.03470823]
[1757027521780,1.52131604,204.11,204.1,0.03470823]
[1757027521985,1.52131604,204.11,204.06,7.76]
[1757027521986,9.56131604,204.12,204.06,7.76]
[1757027522181,9.56131604,204.12,204.08,0.0363083]
[1757027522386,9.56131604,204.12,204.09,7.76]
[1757027522889,9.56131604,204.12,204.08,0.0363083]
[1757027523089,9.56131604,204.12,204.08,7.7963083]
[1757027524387,1.52131604,204.15,204.08,7.7963083]
[1757027524687,1.52131604,204.15,204.09,1.52131604]
[1757027524891,1.52131604,204.17,204.1,7.76]
[1757027525093,1.52131604,204.17,204.1,7.79279833]
[1757027527483,1.52131604,204.15,204.1,7.79279833]
[1757027527689,1.52131604,204.15,204.1,0.03279833]
[1757027527895,8.04,204.14,204.08,45.22]
[1757027528094,9.56131604,204.13,204.1,0.03700369]
[1757027528501,1.52131604,204.13,204.07,9.28131604]
[1757027528697,1.52131604,204.15,204.09,0.03284183]
[1757027528897,1.52131604,204.15,204.09,7.79284183]
[1757027529097,1.52131604,204.15,204.09,7.76]
[1757027529299,1.52131604,204.15,204.1,0.03134987]
[1757027529601,8.04,204.14,204.1,7.79134987]
[1757027529897,1.52131604,204.15,204.1,0.03134987]
[1757027530102,8.04,204.12,204.1,0.03134987]
[1757027530598,8.04,204.12,204.06,7.76]
[1757027530795,8.04,204.12,204.09,0.03116179]
[1757027532502,8.04,204.1,204.09,0.03116179]
[1757027532896,9.56131604,204.11,204.03,136.74009828]
[1757027533092,1.52131604,204.09,204.07,0.03323491]
[1757027533498,8.04,204.08,204.0,13.32009828]
[1757027533694,1.52131604,204.07,204.06,0.03271213]
[1757027534306,1.52131604,204.12,204.06,0.03271213]
[1757027534501,1.52131604,204.12,204.06,1.55402817]